bitfinex-derivatives/quotes_SOLF0:USTF0_20241231
["timestamp","ask_amount","ask_price","bid_price","bid_amount"]
[1735639936133,8.20996768,193.57,193.5,28.20197306]
[1735639936438,8.20996768,193.55,193.5,30.79017306]
[1735639936636,8.20996768,193.53,193.5,28.20197306]
[1735639936841,8.20996768,193.53,193.5,2.5882]
[1735639937433,8.20996768,193.53,193.48,7.12624699]
[1735639937638,8.20996768,193.53,193.51,2.588]
[1735639938438,8.20996768,193.53,193.47,8.20996768]
[1735639939245,8.20996768,193.53,193.45,9.66776768]
[1735639940840,8.20996768,193.53,193.48,2.5884]
[1735639941241,8.20996768,193.53,193.45,9.66776768]
[1735639941544,8.20996768,193.51,193.45,1.4578]
[1735639941744,8.20996768,193.49,193.43,11.22016768]
[1735639942747,8.20996768,193.49,193.45,2.5888]
[1735639943045,65.13426786,193.65,193.45,8.20996768]
[1735639943046,8.20996768,193.51,193.45,8.20996768]
[1735639943547,8.20996768,193.51,193.43,3.0102]
[1735639943750,8.20996768,193.51,193.44,8.20996768]
[1735639943943,8.20996768,193.49,193.46,2.5887]
[1735639945244,8.20996768,193.49,193.44,8.20996768]
[1735639945451,8.20996768,193.49,193.43,3.0102]
[1735639945452,8.20996768,193.49,193.45,2.5888]
[1735639946146,8.20996768,193.49,193.44,2.589]
[1735639946749,8.20996768,193.47,193.44,2.589]
[1735639946945,11.14996768,193.47,193.39,1.5943]
[1735639947248,11.14996768,193.47,193.4,8.20996768]
[1735639947747,11.14996768,193.5,193.44,8.20996768]
[1735639948350,2.94,193.5,193.48,2.5884]
[1735639948552,2.94,193.5,193.44,8.20996768]
[1735639949549,2.94,193.5,193.47,2.5885]
[1735639950751,11.14996768,193.5,193.44,8.20996768]
[1735639951951,11.14996768,193.5,193.47,2.5885]
[1735639952351,2.94,193.5,193.44,8.20996768]
[1735639952549,8.20996768,193.52,193.46,8.20996768]
[1735639953247,8.20996768,193.54,193.52,2.5879]
[1735639953451,8.20996768,193.54,193.48,8.20996768]
[1735639954354,8.20996768,193.54,193.46,8.20996768]
[1735639954651,8.20996768,193.52,193.48,2.5885]
[1735639955855,8.20996768,193.52,193.49,2.5883]
[1735639956549,8.20996768,193.54,193.47,8.20996768]
[1735639956953,8.20996768,193.54,193.51,2.588]
[1735639957554,8.20996768,193.54,193.47,8.20996768]
[1735639958457,8.20996768,193.54,193.49,2.5882]
[1735639962556,8.20996768,193.52,193.48,2.5884]
[1735639962756,8.20996768,193.52,193.46,8.20996768]
[1735639963155,8.20996768,193.52,193.47,2.5885]
[1735639963358,8.20996768,193.52,193.46,8.20996768]
[1735639963751,8.20996768,193.52,193.49,2.5883]
[1735639966158,8.20996768,193.52,193.46,8.20996768]
[1735639966458,8.20996768,193.52,193.48,2.5884]
[1735639968159,8.20996768,193.52,193.46,2.5887]
[1735639970063,8.20996768,193.52,193.48,2.5884]
[1735639970256,8.20996768,193.52,193.44,8.20996768]
[1735639970959,8.20996768,193.52,193.48,2.5884]
[1735639972959,8.20996768,193.52,193.5,2.5881]
[1735639973558,8.20996768,193.52,193.46,8.20996768]
[1735639973865,8.20996768,193.52,193.49,2.5883]
[1735639974357,8.20996768,193.52,193.48,2.5884]
[1735639975065,8.20996768,193.52,193.46,2.5887]
[1735639975762,8.20996768,193.5,193.46,2.5887]
[1735639976861,11.12996768,193.5,193.46,2.5887]
[1735639977062,11.12996768,193.5,193.44,8.20996768]
[1735639977769,11.12996768,193.5,193.46,2.5886]
[1735639978060,11.12996768,193.5,193.44,8.20996768]
[1735639978265,7.92996238,193.59,193.49,8.20996768]
[1735639978463,8.20996768,193.58,193.51,8.20996768]
[1735639978664,11.12996768,193.58,193.51,8.20996768]
[1735639978858,8.20996768,193.58,193.55,2.5875]
[1735639979363,57.20600642,193.59,193.53,8.20996768]
[1735639979561,2.92,193.6,193.55,8.20996768]
[1735639980364,2.92,193.6,193.57,2.5871]
[1735639980661,11.12996768,193.6,193.57,2.5871]
[1735639981167,8.20996768,193.58,193.53,2.5878]
[1735639981568,2.92,193.6,193.53,2.5878]
[1735639981569,8.20996768,193.56,193.53,2.5878]
[1735639981964,8.20996768,193.54,193.48,8.20996768]
[1735639982264,8.20996768,193.54,193.46,36.41194074]
[1735639982469,8.20996768,193.52,193.49,2.5882]
[1735639982671,8.20996768,193.52,193.46,36.41194074]
[1735639982672,8.20996768,193.52,193.46,8.20996768]
[1735639983570,8.20996768,193.52,193.45,3.1273]
[1735639984270,8.20996768,193.52,193.46,4.55253695]
[1735639984473,8.20996768,193.5,193.45,3.1273]
[1735639984768,11.12996768,193.5,193.46,2.5886]
[1735639984968,11.12996768,193.5,193.45,3.1273]
[1735639985972,11.12996768,193.5,193.45,5.716]
[1735639986469,11.12996768,193.5,193.44,2.5889]
[1735639986661,11.12996768,193.5,193.42,8.20996768]
[1735639986866,2.92,193.5,193.48,2.5883]
[1735639988071,8.20996768,193.52,193.46,8.20996768]
[1735639988461,8.20996768,193.52,193.5,2.5881]
[1735639989176,8.20996768,193.52,193.4,34.20937306]
[1735639989475,8.20996768,193.52,193.48,2.5884]
[1735639990478,8.20996768,193.52,193.47,2.5886]
[1735639991077,8.20996768,193.5,193.46,2.5887]
[1735639991377,8.20996768,193.48,193.42,8.20996768]
[1735639991776,11.12996768,193.48,193.46,2.5887]
[1735639992487,2.92,193.48,193.46,2.5887]
[1735639993183,11.12996768,193.48,193.4,3.0874]
[1735639993386,8.20996768,193.45,193.4,3.0874]
[1735639994192,8.20996768,193.45,193.41,2.5893]
[1735639996390,8.20996768,193.45,193.4,3.0874]
[1735639996594,8.20996768,193.47,193.43,2.5891]
[1735639996782,2.92,193.48,193.41,8.20996768]
[1735639996982,8.20996768,193.42,193.37,2.81934652]
[1735639997185,8.20996768,193.42,193.38,8.53068752]
[1735639997392,8.20996768,193.42,193.37,2.81934652]
[1735639997789,3.02,193.43,193.37,11.0293142]
[1735639998092,3.02,193.43,193.42,2.5892]
[1735639998392,3.02,193.43,193.37,11.0293142]
[1735639998690,3.02,193.43,193.4,2.5894]
[1735639999990,3.02,193.43,193.41,2.5894]
[1735640000592,11.22996768,193.47,193.43,2.589]
[1735640000892,11.22996768,193.47,193.41,8.20996768]
[1735640001296,11.22996768,193.47,193.44,2.5889]
[1735640002289,3.02,193.47,193.45,2.5888]
[1735640002585,7.95939457,193.59,193.45,2.5888]
[1735640002786,8.20996768,193.49,193.47,2.5886]
[1735640003095,11.22996768,193.51,193.43,8.20996768]
[1735640003393,8.20996768,193.49,193.43,9.66636768]
[1735640003992,8.20996768,193.49,193.44,2.5889]
[1735640006289,8.20996768,193.47,193.43,1.4564]
[1735640006488,8.20996768,193.47,193.42,4.1188]
[1735640007695,8.20996768,193.47,193.42,2.5891]
[1735640008095,8.20996768,193.45,193.42,2.5891]
[1735640008797,8.20996768,193.45,193.43,2.5891]
[1735640009296,8.20996768,193.45,193.38,9.69096768]
[1735640009297,11.22996768,193.45,193.38,1.481]
[1735640009893,11.22996768,193.45,193.39,2.5896]
[1735640010096,11.22996768,193.45,193.39,8.20996768]
[1735640010795,11.22996768,193.45,193.42,2.5892]
[1735640010996,3.02,193.45,193.42,2.5892]
[1735640011604,3.02,193.45,193.41,2.5893]
[1735640011793,11.22996768,193.45,193.39,8.20996768]
[1735640012196,11.22996768,193.45,193.38,1.481]
[1735640012400,8.20996768,193.43,193.38,1.481]
[1735640012803,8.20996768,193.43,193.38,4.0707]
[1735640013101,8.20996768,193.43,193.38,1.481]
[1735640013403,8.20996768,193.41,193.35,8.20996768]
[1735640013598,8.20996768,193.39,193.33,8.20996768]
[1735640013798,11.22996768,193.39,193.33,8.20996768]
[1735640014200,11.22996768,193.39,193.34,2.5902]
[1735640017801,11.22996768,193.39,193.32,8.20996768]
[1735640018004,11.22996768,193.39,193.35,2.5901]
[1735640019411,11.22996768,193.39,193.36,2.59]
[1735640021106,11.22996768,193.39,193.32,8.20996768]
[1735640021306,11.22996768,193.39,193.35,2.5902]
[1735640021507,8.20996768,193.37,193.31,3.0036]
[1735640022009,8.20996768,193.37,193.33,2.5904]
[1735640022710,3.02,193.39,193.33,2.5904]
[1735640022905,8.20996768,193.37,193.33,2.5904]
[1735640026007,8.20996768,193.35,193.23,10.18624699]
[1735640026309,8.20996768,193.33,193.25,8.20996768]
[1735640026511,8.20996768,193.33,193.27,2.5912]
[1735640026906,3.06,193.34,193.25,8.20996768]
[1735640027112,11.26996768,193.34,193.27,8.20996768]
[1735640027315,11.26996768,193.34,193.26,8.20996768]
[1735640028008,3.06,193.34,193.3,8.20996768]
[1735640028210,8.20996768,193.38,193.33,2.5905]
[1735640028415,11.26996768,193.38,193.33,2.5905]
[1735640028913,11.26996768,193.38,193.31,8.20996768]
[1735640029214,11.26996768,193.38,193.34,2.5903]
[1735640029914,11.26996768,193.38,193.36,2.59]
[1735640030616,3.06,193.4,193.37,2.5898]
[1735640030817,3.06,193.41,193.37,2.5898]
[1735640031210,8.20996768,193.38,193.29,8.5085433]
[1735640031405,8.20996768,193.38,193.24,4.578]
[1735640031613,8.20996768,193.38,193.3,8.20996768]
[1735640031812,8.20996768,193.38,193.32,2.5905]
[1735640032014,8.20996768,193.38,193.3,8.20996768]
[1735640032209,8.20996768,193.36,193.3,8.20996768]
[1735640032413,3.06,193.36,193.3,8.20996768]
[1735640033015,3.06,193.36,193.33,2.5904]
[1735640033412,3.06,193.36,193.32,2.5906]
[1735640033612,11.26996768,193.36,193.32,2.5906]
[1735640033813,11.26996768,193.36,193.3,8.20996768]
[1735640034013,11.26996768,193.36,193.31,2.5906]
[1735640034411,11.26996768,193.36,193.28,8.20996768]
[1735640034613,8.20996768,193.34,193.26,8.20996768]
[1735640035215,8.20996768,193.34,193.27,2.5913]
[1735640035413,8.20996768,193.34,193.26,8.20996768]
[1735640036515,8.20996768,193.34,193.24,4.578]
[1735640036816,8.20996768,193.34,193.25,8.20996768]
[1735640037219,8.20996768,193.34,193.28,2.591]
[1735640041017,65.12679892,193.46,193.3,8.20996768]
[1735640041224,8.20996768,193.42,193.34,8.20996768]
[1735640041521,11.26996768,193.44,193.32,3.06]
[1735640041715,8.20996768,193.42,193.38,2.5897]
[1735640041916,11.26996768,193.44,193.35,8.20996768]
[1735640042219,11.26996768,193.44,193.38,2.5897]
[1735640043515,11.26996768,193.44,193.35,2.5902]
[1735640043718,8.20996768,193.42,193.35,10.80016768]
[1735640044522,8.20996768,193.42,193.35,8.20996768]
[1735640044819,8.20996768,193.42,193.34,2.5903]
[1735640045018,8.20996768,193.4,193.34,2.5903]
[1735640045219,3.06,193.39,193.34,2.5903]
[1735640047416,3.06,193.39,193.33,3.0108]
[1735640047922,3.06,193.39,193.34,2.5902]
[1735640048724,3.06,193.39,193.35,2.5902]
[1735640056031,3.06,193.39,193.33,3.0108]
[1735640058932,3.06,193.39,193.33,5.6012]
[1735640059233,3.06,193.39,193.33,2.5904]
[1735640059433,3.06,193.39,193.31,2.5907]
[1735640059927,3.06,193.39,193.28,1.5469]
[1735640060129,3.06,193.39,193.29,8.53926993]
[1735640060324,3.06,193.39,193.32,2.5905]
[1735640060725,3.06,193.39,193.28,1.5469]
[1735640060926,3.06,193.39,193.32,2.5906]
[1735640061735,15.9218173,193.39,193.26,15.8475173]
[1735640061934,15.9218173,193.39,193.27,10.00709847]
[1735640062131,15.9218173,193.39,193.28,4.5549069]
[1735640062336,15.9218173,193.39,193.27,1.4651]
[1735640062536,7.94615496,193.48,193.29,12.8618173]
[1735640062726,12.8618173,193.45,193.32,12.8618173]
[1735640062931,12.8618173,193.45,193.33,7.61277171]
[1735640063133,12.8618173,193.45,193.33,3.0586]
[1735640063425,12.8618173,193.45,193.34,4.55054447]
[1735640063633,12.8618173,193.45,193.37,2.5898]
[1735640063832,12.8618173,193.45,193.33,3.0586]
[1735640064035,12.8618173,193.45,193.34,8.532515]
[1735640064236,3.1,193.44,193.35,4.54962809]
[1735640064436,3.1,193.44,193.34,1.4651]
[1735640064831,3.1,193.43,193.34,1.4651]
[1735640065034,3.1,193.43,193.35,4.54889851]
[1735640065232,3.1,193.43,193.39,2.5896]
[1735640065734,3.1,193.43,193.34,1.4651]
[1735640065934,3.1,193.43,193.35,4.54816185]
[1735640066134,3.1,193.43,193.34,1.4651]
[1735640066336,3.1,193.43,193.4,2.5895]
[1735640068140,12.8618173,193.48,193.35,12.8618173]
[1735640068341,57.48842043,193.5,193.39,8.22767153]
[1735640068342,11.32767153,193.47,193.39,8.22767153]
[1735640068735,11.32767153,193.47,193.43,2.5891]
[1735640070937,11.32767153,193.47,193.42,2.5892]
[1735640073940,8.22767153,193.47,193.42,2.5892]
[1735640074146,3.1,193.5,193.43,8.22767153]
[1735640074341,3.1,193.5,193.45,8.22767153]
[1735640074548,3.1,193.5,193.44,2.5889]
[1735640074744,3.1,193.5,193.43,8.22767153]
[1735640076548,11.32767153,193.5,193.43,10.81667153]
[1735640077546,11.32767153,193.5,193.43,2.589]
[1735640077742,11.32767153,193.5,193.42,8.22767153]
[1735640077948,3.1,193.5,193.44,2.5889]
[1735640078249,3.1,193.5,193.42,8.22767153]
[1735640078449,3.1,193.5,193.45,2.5888]
[1735640079653,3.1,193.5,193.42,8.22767153]
[1735640079857,3.1,193.5,193.46,2.5887]
[1735640080352,3.1,193.5,193.42,8.22767153]
[1735640080552,11.32767153,193.51,193.42,8.22767153]
[1735640080742,11.32767153,193.51,193.44,8.22767153]
[1735640081355,3.1,193.52,193.48,2.5884]
[1735640081756,3.1,193.52,193.46,8.22767153]
[1735640081955,3.1,193.52,193.49,2.5882]
[1735640082854,3.1,193.52,193.5,2.5881]
[1735640083256,11.32767153,193.53,193.5,2.5881]
[1735640083457,11.32767153,193.53,193.51,2.588]
[1735640083652,53.84,193.57,193.48,8.22767153]
[1735640083858,11.34767153,193.56,193.48,8.22767153]
[1735640084157,3.12,193.55,193.49,1.5372]
[1735640085258,3.12,193.55,193.51,2.5879]
[1735640085461,3.12,193.55,193.49,1.5372]
[1735640085853,11.34767153,193.56,193.52,2.5878]
[1735640086054,8.22767153,193.56,193.5,8.22767153]
[1735640086760,3.12,193.57,193.5,8.22767153]
[1735640087459,11.34767153,193.58,193.54,2.5876]
[1735640087659,11.34767153,193.58,193.5,8.22767153]
[1735640087859,11.34767153,193.58,193.52,2.5878]
[1735640089757,3.12,193.59,193.55,2.5875]
[1735640089963,11.34767153,193.6,193.55,2.5875]
[1735640090153,11.34767153,193.6,193.52,8.22767153]
[1735640090359,11.34767153,193.6,193.54,2.5876]
[1735640090760,11.34767153,193.6,193.52,8.22767153]
[1735640090961,11.34767153,193.6,193.56,2.5873]
[1735640091158,53.82,193.68,193.56,8.22767153]
[1735640091362,8.22767153,193.65,193.6,2.5868]
[1735640091567,8.22767153,193.65,193.58,8.22767153]
[1735640091866,11.34767153,193.65,193.58,10.81467153]
[1735640092866,11.34767153,193.65,193.58,2.587]
[1735640093068,8.22767153,193.63,193.58,2.587]
[1735640094562,8.22767153,193.63,193.56,9.82867153]
[1735640094765,11.34767153,193.65,193.6,2.5869]
[1735640094964,11.34767153,193.65,193.58,8.22767153]
[1735640095465,11.34767153,193.65,193.59,2.5869]
[1735640095660,11.34767153,193.65,193.58,8.22767153]
[1735640095960,11.34767153,193.65,193.6,2.5868]
[1735640097169,8.22767153,193.65,193.6,2.5868]
[1735640098159,8.22767153,193.65,193.58,8.22767153]
[1735640098359,7.88476795,193.78,193.6,8.22767153]
[1735640098669,8.22767153,193.67,193.6,8.22767153]
[1735640098969,53.78,193.79,193.62,8.22767153]
[1735640099264,8.22767153,193.72,193.64,8.22767153]
[1735640099875,57.40723511,193.77,193.66,8.22767153]
[1735640100064,8.22767153,193.74,193.66,8.22767153]
[1735640100260,57.40723511,193.77,193.68,2.5857]
[1735640100570,11.34767153,193.76,193.68,8.22767153]
[1735640100770,11.34767153,193.76,193.69,2.5856]
[1735640100967,57.20600642,193.85,193.69,2.5856]
[1735640101165,8.22767153,193.76,193.68,8.22767153]
[1735640101365,3.12,193.78,193.7,8.22767153]
[1735640101658,8.22767153,193.78,193.7,8.22767153]
[1735640101865,8.22767153,193.78,193.72,2.5852]
[1735640102065,8.22767153,193.78,193.7,8.22767153]
[1735640102570,8.22767153,193.76,193.68,8.22767153]
[1735640102762,8.22767153,193.74,193.66,8.22767153]
[1735640102966,11.34767153,193.74,193.66,8.22767153]
[1735640103471,11.34767153,193.74,193.68,2.5857]
[1735640103865,11.34767153,193.74,193.66,8.22767153]
[1735640104067,8.22767153,193.72,193.66,8.22767153]
[1735640104269,3.12,193.74,193.64,1.4676]
[1735640104270,8.22767153,193.7,193.64,1.4676]
[1735640104568,8.22767153,193.68,193.63,3.0424]
[1735640111474,8.22767153,193.68,193.56,1.5674]
[1735640111674,8.22767153,193.66,193.59,10.81467153]
[1735640111974,8.22767153,193.66,193.57,3.0914]
[1735640112176,8.22767153,193.62,193.57,3.0914]
[1735640112470,11.34767153,193.62,193.54,8.22767153]
[1735640113367,8.22767153,193.6,193.54,8.22767153]
[1735640114574,8.22767153,193.6,193.53,2.89970976]
[1735640115171,8.22767153,193.6,193.52,10.81547153]
[1735640116380,8.22767153,193.58,193.52,8.22767153]
[1735640116975,8.22767153,193.58,193.52,10.81557153]
[1735640117180,8.22767153,193.58,193.52,8.22767153]
[1735640117577,3.1,193.57,193.51,4.5931]
[1735640118580,3.1,193.57,193.51,3.0914]
[1735640121777,8.22767153,193.54,193.46,8.22767153]
[1735640121981,8.22767153,193.5,193.44,8.22767153]
[1735640122288,3.1,193.49,193.44,8.22767153]
[1735640122486,3.1,193.49,193.43,31.21417306]
[1735640122888,3.1,193.49,193.43,10.13844699]
[1735640123185,3.1,193.49,193.43,3.0122]
[1735640123581,3.1,193.49,193.43,5.6013]
[1735640125487,3.1,193.49,193.43,3.0122]
[1735640125690,8.22767153,193.48,193.41,2.5894]
[1735640125984,8.22767153,193.48,193.41,10.81707153]
[1735640126491,3.1,193.49,193.38,2.5898]
[1735640126492,8.22767153,193.44,193.38,2.5898]
[1735640126685,3.1,193.43,193.38,2.5898]
[1735640127185,3.1,193.43,193.32,2.9617]
[1735640127395,8.22767153,193.42,193.34,8.22767153]
[1735640127785,8.22767153,193.4,193.34,8.22767153]
[1735640129087,8.22767153,193.4,193.34,10.81797153]
[1735640129288,8.22767153,193.4,193.34,8.22767153]
[1735640130191,12.86472409,193.42,193.33,2.5904]
[1735640130394,12.86472409,193.42,193.32,2.9617]
[1735640130788,12.86472409,193.42,193.32,5.5523]
[1735640130989,12.86472409,193.39,193.25,2.86403548]
[1735640131290,3.1,193.38,193.27,2.5912]
[1735640131593,3.1,193.38,193.26,12.86472409]
[1735640131994,3.1,193.38,193.28,2.591]
[1735640132288,3.1,193.38,193.26,12.86472409]
[1735640132495,3.1,193.38,193.27,2.5913]
[1735640132796,3.1,193.38,193.25,2.86403548]
[1735640133095,12.86472409,193.36,193.26,2.5914]
[1735640133494,12.86472409,193.36,193.25,5.45553548]
[1735640133796,12.86472409,193.36,193.25,2.86403548]
[1735640135692,12.86472409,193.36,193.25,5.45553548]
[1735640136396,3.1,193.38,193.25,2.86403548]
[1735640136599,15.96472409,193.38,193.25,2.86403548]
[1735640137002,3.1,193.37,193.29,2.5909]
[1735640137497,3.1,193.37,193.28,2.591]
[1735640138500,3.1,193.37,193.26,2.5913]
[1735640138998,3.1,193.37,193.25,2.86403548]
[1735640139395,3.1,193.37,193.25,5.45543548]
[1735640139801,12.86472409,193.35,193.25,2.86403548]
[1735640140294,12.86472409,193.35,193.23,2.5918]
[1735640140699,12.86472409,193.35,193.21,1.5486]
[1735640141002,12.86472409,193.35,193.23,12.86472409]
[1735640141205,3.1,193.37,193.23,12.86472409]
[1735640141399,57.51341214,193.42,193.27,12.86472409]
[1735640141702,56.63806145,193.63,193.38,12.86472409]
[1735640141703,12.86472409,193.51,193.38,12.86472409]
[1735640141900,12.86472409,193.51,193.39,3.1]
[1735640142203,12.86472409,193.51,193.39,4.6439]
[1735640142402,12.86472409,193.51,193.39,6.1163]
[1735640142801,12.86472409,193.51,193.4,3.1]
[1735640143002,12.86472409,193.51,193.39,3.0163]
[1735640143305,12.86472409,193.51,193.39,6.0963]
[1735640143603,12.86472409,193.54,193.39,6.0963]
[1735640143807,3.08,193.55,193.43,12.86472409]
[1735640144007,3.08,193.55,193.44,4.6581]
[1735640144306,3.08,193.56,193.48,2.5884]
[1735640144705,3.08,193.56,193.44,4.6581]
[1735640144904,3.08,193.56,193.46,2.5886]
[1735640145305,3.08,193.56,193.44,4.6581]
[1735640145504,12.86472409,193.57,193.44,4.6581]
[1735640145709,12.86472409,193.6,193.46,12.86472409]
[1735640145910,15.94472409,193.6,193.46,12.86472409]
[1735640146909,15.94472409,193.6,193.51,2.5879]
[1735640147907,12.86472409,193.6,193.49,3.08]
[1735640148107,60.54028462,193.62,193.5,2.9695]
[1735640148813,60.54028462,193.62,193.55,2.5875]
[1735640149111,60.54028462,193.62,193.52,12.86472409]
[1735640149112,57.46028462,193.62,193.52,12.86472409]
[1735640149308,15.94472409,193.66,193.53,4.5544]
[1735640150915,12.86472409,193.66,193.53,4.5544]
[1735640151411,12.86472409,193.66,193.58,2.5871]
[1735640152114,12.86472409,193.66,193.55,12.86472409]
[1735640152614,3.08,193.67,193.55,12.86472409]
[1735640152808,3.08,193.7,193.58,12.86472409]
[1735640153019,3.08,193.7,193.59,4.637]
[1735640154410,3.08,193.7,193.56,3.08]
[1735640154411,12.86472409,193.68,193.56,3.08]
[1735640155014,12.86472409,193.68,193.6,2.5868]
[1735640156414,12.86472409,193.68,193.59,2.587]
[1735640157818,12.86472409,193.68,193.56,3.08]
[1735640158024,12.86472409,193.68,193.58,2.5871]
[1735640159016,12.86472409,193.68,193.55,15.94472409]
[1735640159715,12.86472409,193.68,193.55,12.86472409]
[1735640159920,12.86472409,193.68,193.56,3.08]
[1735640160223,12.86472409,193.68,193.59,2.5869]
[1735640160425,12.86472409,193.68,193.56,3.08]
[1735640161123,12.86472409,193.68,193.55,15.94472409]
[1735640161516,12.86472409,193.68,193.6,2.5868]
[1735640162419,12.86472409,193.68,193.55,12.86472409]
[1735640163313,12.86472409,193.68,193.58,2.5871]
[1735640164419,12.86472409,193.68,193.55,12.86472409]
[1735640164615,3.08,193.69,193.58,12.86472409]
[1735640164822,3.08,193.69,193.59,1.4944]
[1735640165028,3.08,193.69,193.62,2.5866]
[1735640165220,3.08,193.69,193.59,1.4944]
[1735640165616,3.08,193.69,193.63,2.5863]
[1735640166220,12.86472409,193.71,193.63,2.5863]
[1735640166424,3.08,193.7,193.63,2.5863]
[1735640166623,3.08,193.7,193.64,2.5863]
[1735640167619,12.86472409,193.71,193.65,2.5862]
[1735640167818,12.86472409,193.71,193.59,1.4944]
[1735640168020,15.94472409,193.71,193.59,1.4944]
[1735640168221,15.94472409,193.71,193.66,2.586]
[1735640168425,15.94472409,193.71,193.59,1.4944]
[1735640168826,15.94472409,193.71,193.64,2.5862]
[1735640169621,15.94472409,193.71,193.59,1.4944]
[1735640170230,12.86472409,193.71,193.67,2.5859]
[1735640170424,3.08,193.73,193.63,3.08]
[1735640170625,15.94472409,193.74,193.64,3.0588]
[1735640171220,15.94472409,193.74,193.67,2.5859]
[1735640171531,12.86472409,193.74,193.64,3.0588]
[1735640171826,15.94472409,193.74,193.64,3.0588]
[1735640172027,15.94472409,193.74,193.67,2.5858]
[1735640172556,12.86472409,193.7,193.6,3.08]
[1735640172737,12.86472409,193.7,193.6,6.0531]
[1735640173122,12.86472409,193.7,193.64,2.5862]
[1735640173323,12.86472409,193.7,193.6,6.0531]
[1735640173924,12.86472409,193.7,193.65,2.5861]
[1735640174425,12.86472409,193.7,193.63,2.5865]
[1735640174920,12.86472409,193.7,193.62,2.5865]
[1735640175827,12.86472409,193.67,193.55,3.04]
[1735640176027,3.04,193.66,193.54,12.86472409]
[1735640176330,12.86472409,193.64,193.57,2.5872]
[1735640176629,12.86472409,193.64,193.54,12.86472409]
[1735640178031,3.04,193.66,193.54,12.86472409]
[1735640178632,3.04,193.66,193.59,2.5869]
[1735640180033,3.04,193.66,193.54,12.86472409]
[1735640180235,3.04,193.66,193.57,2.5872]
[1735640181634,3.04,193.66,193.56,2.5874]
[1735640182130,3.04,193.66,193.54,12.86472409]
[1735640182331,3.04,193.66,193.57,2.5872]
[1735640184934,12.86472409,193.64,193.53,12.59876935]
[1735640185138,12.86472409,193.64,193.53,10.01106935]
[1735640185749,12.86472409,193.64,193.54,2.5876]
[1735640185938,3.04,193.66,193.53,8.50546935]
[1735640185939,12.86472409,193.61,193.53,8.50546935]
[1735640186138,12.86472409,193.61,193.53,7.04906935]
[1735640186139,3.04,193.6,193.53,7.04906935]
[1735640186438,3.04,193.6,193.51,28.1962774]
[1735640186837,3.04,193.6,193.51,30.7842774]
[1735640187737,3.04,193.6,193.51,2.588]
[1735640188138,3.04,193.6,193.52,2.5879]
[1735640189143,3.04,193.6,193.5,2.5881]
[1735640189343,12.86472409,193.58,193.5,2.5881]
[1735640190140,12.86472409,193.58,193.49,2.5883]
[1735640190541,12.86472409,193.58,193.48,1.5283]
[1735640190743,12.86472409,193.58,193.5,2.5882]
[1735640191544,12.86472409,193.58,193.49,2.5883]
[1735640192247,12.86472409,193.58,193.5,2.5882]
[1735640194252,12.86472409,193.58,193.51,2.5879]
[1735640194453,12.86472409,193.58,193.48,1.5283]
[1735640194852,3.04,193.6,193.49,8.4830159]
[1735640195049,3.04,193.6,193.5,8.48218843]
[1735640195249,3.04,193.6,193.51,4.52358045]
[1735640195450,3.04,193.6,193.49,3.04]
[1735640195752,3.04,193.6,193.53,2.5878]
[1735640196052,3.04,193.6,193.49,3.04]
[1735640196251,3.04,193.6,193.48,14.39302409]
[1735640196447,3.04,193.6,193.49,2.5883]
[1735640196755,3.04,193.6,193.48,14.39302409]
[1735640196756,12.86472409,193.58,193.48,1.5283]
[1735640196954,12.86472409,193.55,193.46,1.5417]
[1735640197149,12.86472409,193.52,193.45,1.5346]
[1735640197350,12.86472409,193.52,193.43,1.4806]
[1735640198960,12.86472409,193.52,193.43,4.0697]
[1735640199461,12.86472409,193.52,193.43,1.4806]
[1735640200663,12.86472409,193.52,193.43,4.0697]
[1735640200859,12.86472409,193.52,193.43,1.4806]
[1735640201267,12.86472409,193.52,193.44,2.5889]
[1735640201464,12.86472409,193.52,193.43,1.4806]
[1735640202562,12.86472409,193.52,193.44,2.5889]
[1735640204771,12.86472409,193.55,193.43,1.4806]
[1735640205067,3.02,193.54,193.43,1.4806]
[1735640205270,3.02,193.54,193.46,2.5887]
[1735640205667,3.02,193.53,193.46,2.5887]
[1735640208566,12.86472409,193.58,193.43,1.4806]